bitfinex/quotes_ETHUSD_20241106
["timestamp","ask_amount","ask_price","bid_price","bid_amount"]
[1730909170841,4.10655133,2642.6,2641.9,0.7982]
[1730909171152,3.0,2643.0,2641.9,0.7982]
[1730909171347,11.43025289,2643.3,2641.6,0.01]
[1730909171348,0.3473969,2642.9,2642.0,0.0756863]
[1730909171674,7.00276481,2643.3,2642.1,0.86388736]
[1730909171880,0.34746774,2643.2,2642.1,0.86388736]
[1730909172182,8.41238107,2643.1,2642.1,0.86388736]
[1730909172335,1.48545518,2643.2,2642.1,0.86388736]
[1730909172336,8.06542333,2642.8,2642.1,0.86388736]
[1730909172535,0.34746774,2642.7,2642.1,0.7854]
[1730909172752,1.48545518,2643.2,2642.1,0.7854]
[1730909172753,3.0,2643.0,2642.1,0.7854]
[1730909172970,0.34734455,2642.9,2642.1,0.7854]
[1730909173170,1.51959279,2642.9,2642.1,0.7854]
[1730909173351,0.34736924,2642.8,2642.1,0.7854]
[1730909173554,3.0,2643.0,2642.1,0.7854]
[1730909173759,0.34733164,2642.9,2642.1,0.7854]
[1730909173956,4.62880901,2642.8,2642.1,0.7854]
[1730909174154,8.06534333,2642.8,2642.1,0.7854]
[1730909174344,5.76637966,2642.8,2642.1,0.7854]
[1730909174904,0.34723434,2642.7,2642.1,0.7854]
[1730909175046,5.76637966,2642.8,2642.1,0.7854]
[1730909175247,0.34726319,2642.7,2642.1,0.7854]
[1730909175459,5.76637966,2642.8,2642.1,0.7854]
[1730909176079,0.3473807,2642.7,2642.1,0.7854]
[1730909176252,5.76637966,2642.8,2642.1,0.7854]
[1730909176457,0.34744356,2642.7,2642.1,0.7854]
[1730909176657,5.76637966,2642.8,2642.1,0.7854]
[1730909176855,5.08650275,2642.7,2642.1,0.7854]
[1730909177055,0.34747197,2642.6,2642.1,0.7854]
[1730909177278,4.73902997,2642.7,2642.1,0.7854]
[1730909177654,8.52311997,2642.7,2642.1,0.7854]
[1730909177855,4.13164163,2642.6,2642.1,0.7854]
[1730909178070,3.78419,2642.6,2642.1,0.7854]
[1730909178389,3.78488,2642.1,2641.2,0.8025]
[1730909178562,4.28147333,2642.2,2641.2,0.8025]
[1730909178900,3.0,2642.4,2641.4,0.7928]
[1730909179051,0.34741306,2642.3,2641.4,0.7928]
[1730909179254,3.0,2642.4,2641.4,0.7928]
[1730909179486,0.34742842,2642.3,2641.4,0.7928]
[1730909179654,4.27605107,2642.4,2641.4,0.7928]
[1730909179857,0.34745889,2642.3,2641.4,0.7928]
[1730909180093,4.27605107,2642.4,2641.4,0.7928]
[1730909180492,4.28147333,2642.5,2641.2,0.7967]
[1730909180800,4.28147333,2642.5,2641.4,0.7996]
[1730909181305,4.28147333,2642.5,2641.6,0.7996]
[1730909181507,0.95500997,2642.7,2641.6,0.7996]
[1730909181704,0.34804247,2642.6,2641.8,0.8017]
[1730909181998,4.28147333,2642.5,2641.9,0.0792666]
[1730909182328,4.28147333,2642.2,2641.9,0.0792666]
[1730909182659,0.34803633,2642.1,2641.3,0.8179]
[1730909182973,4.28147333,2641.9,2641.4,0.07982327]
[1730909183699,0.84140897,2642.1,2641.4,0.07982327]
[1730909183884,4.28147333,2642.2,2641.4,0.07982327]
[1730909184090,0.34810301,2642.1,2641.4,0.07982327]
[1730909184263,4.28147333,2642.2,2641.4,0.07982327]
[1730909184464,0.34812263,2642.1,2641.4,0.07982327]
[1730909184701,0.34812263,2642.0,2641.4,0.07982327]
[1730909184949,4.28147333,2642.2,2641.4,0.07982327]
[1730909184950,3.0,2642.1,2641.4,0.07982327]
[1730909185102,0.3480447,2642.0,2641.4,0.07982327]
[1730909185443,4.10660533,2642.1,2641.4,0.07982327]
[1730909185601,0.3481011,2642.0,2641.4,0.07982327]
[1730909185939,4.87110533,2642.1,2641.4,0.07982327]
[1730909186237,1.26338706,2642.0,2641.3,12.9479]
[1730909186421,0.34812919,2641.9,2641.3,12.9479]
[1730909186627,4.10660533,2642.1,2641.3,12.9479]
[1730909186799,0.34814715,2642.0,2641.4,12.13]
[1730909187001,4.28147333,2642.5,2641.5,0.88000477]
[1730909187200,0.34815307,2642.4,2641.5,0.88426262]
[1730909187411,3.27,2642.7,2641.5,0.88426262]
[1730909187613,0.34817086,2642.6,2641.7,0.7889]
[1730909187921,7.61147333,2643.1,2641.9,0.7889]
[1730909188237,7.61147333,2643.1,2642.1,0.818]
[1730909188238,0.34819736,2643.0,2642.1,0.818]
[1730909188434,0.34819736,2642.9,2642.3,0.818]
[1730909188602,0.34819736,2642.8,2642.3,0.818]
[1730909188801,3.33,2643.1,2642.4,0.0781514]
[1730909189042,0.34824975,2643.0,2642.4,1.38076654]
[1730909189340,0.34824975,2642.9,2642.4,1.38076654]
[1730909189561,0.34824975,2642.8,2642.4,1.38076654]
[1730909189701,3.0,2643.0,2642.4,1.38076654]
[1730909189901,0.34813527,2642.9,2642.4,1.38076654]
[1730909190203,4.6296086,2642.8,2642.4,0.0781514]
[1730909190449,0.34813527,2642.7,2642.4,0.0781514]
[1730909190648,3.34813527,2642.7,2642.4,0.0781514]
[1730909190951,0.34813527,2642.6,2642.0,0.7867]
[1730909191117,6.78408,2642.7,2642.5,0.07827716]
[1730909191303,1.45465347,2642.6,2642.0,0.7867]
[1730909191644,0.34809814,2642.5,2642.1,0.07868739]
[1730909191843,0.34809814,2642.4,2642.1,0.07868739]
[1730909192049,0.34809814,2642.3,2642.1,0.07868739]
[1730909192346,1.10655533,2642.6,2642.1,0.07868739]
[1730909192549,0.34801817,2642.5,2642.1,0.07868739]
[1730909192705,0.34801817,2642.4,2642.1,0.07868739]
[1730909192911,0.7878,2642.9,2642.1,0.07868739]
[1730909193215,0.3481143,2642.8,2642.1,0.07868739]
[1730909193435,0.3481143,2642.7,2642.1,0.07868739]
[1730909193616,0.3481143,2642.6,2642.1,0.07868739]
[1730909193973,0.3481143,2642.5,2642.1,0.07868739]
[1730909194240,0.3481143,2642.4,2642.1,0.07868739]
[1730909194544,4.70279556,2642.9,2642.1,0.07868739]
[1730909194752,0.54866256,2642.8,2642.1,0.07868739]
[1730909194977,0.34818229,2642.7,2642.1,0.07868739]
[1730909195239,0.34818229,2642.6,2642.1,0.07868739]
[1730909195446,0.34818229,2642.5,2642.1,0.07868739]
[1730909195647,1.70279556,2642.9,2642.1,0.07868739]
[1730909195648,0.34818229,2642.4,2642.1,0.07868739]
[1730909195849,6.78404,2642.7,2642.1,12.20868739]
[1730909196006,0.34831363,2642.6,2642.1,12.20868739]
[1730909196206,8.06087089,2642.7,2642.1,12.20868739]
[1730909196207,0.34831363,2642.5,2642.1,12.20868739]
[1730909196449,0.34831363,2642.4,2642.1,12.20868739]
[1730909196757,0.34831363,2642.3,2642.1,12.13]
[1730909196904,0.34831363,2642.2,2642.1,12.13]
[1730909197407,0.34831363,2642.2,2642.1,12.20340379]
[1730909197836,1.14410499,2642.2,2642.1,12.20340379]
[1730909198038,9.21029832,2642.2,2642.1,12.20340379]
[1730909198220,12.21029832,2642.2,2642.1,0.07340379]
[1730909198421,12.21029832,2642.2,2641.6,0.7874]
[1730909198422,3.0,2642.1,2641.6,0.7874]
[1730909198627,0.34812475,2642.2,2641.6,0.7874]
[1730909198843,0.34812475,2642.1,2641.6,0.7874]
[1730909199049,0.34812475,2642.0,2641.6,0.7874]
[1730909199258,0.34812475,2641.9,2641.6,0.7874]
[1730909199420,7.28147333,2642.2,2640.5,0.06572739]
[1730909199421,0.34810612,2641.8,2641.1,12.9118]
[1730909199753,3.0,2642.0,2641.2,13.42118]
[1730909199754,0.34810021,2641.7,2641.2,13.42118]
[1730909199982,4.28147333,2641.9,2641.2,12.13]
[1730909200277,0.34815459,2641.8,2641.2,12.13]
[1730909200582,0.34815459,2641.7,2641.2,12.13]
[1730909200769,0.34815459,2641.6,2641.2,13.42118]
[1730909200969,4.28147333,2641.9,2641.2,13.42118]
[1730909201183,0.34826657,2641.8,2641.2,13.42118]
[1730909201499,4.28147333,2642.5,2641.4,0.8121]
[1730909201709,4.13278966,2642.4,2641.5,12.13]
[1730909201866,0.67652151,2642.3,2641.5,13.42421]
[1730909202068,0.67652151,2642.3,2640.9,3.0]
[1730909202069,5.05337333,2642.2,2641.0,12.13]
[1730909202270,3.78502,2642.0,2641.0,12.13]
[1730909202489,0.34832491,2641.9,2641.0,12.13]
[1730909202654,0.34832491,2641.8,2640.9,12.13]
[1730909202853,0.34832491,2641.7,2640.9,12.13]
[1730909203055,0.34832491,2641.6,2641.0,1.29421]
[1730909203383,0.34833914,2641.5,2640.9,12.13]
[1730909203567,0.34833914,2641.4,2640.9,12.13]
[1730909203776,3.0,2641.7,2640.9,12.13]
[1730909203968,0.34832088,2641.6,2640.9,12.13]
[1730909204170,0.34832088,2641.5,2640.9,12.13]
[1730909204379,0.34832088,2641.4,2640.9,12.13]
[1730909204665,4.62979421,2641.3,2640.3,12.13]
[1730909204884,0.34832088,2641.2,2640.5,0.7989]
[1730909205053,0.34832088,2641.1,2640.5,0.7989]
[1730909205254,0.34832088,2641.0,2640.5,0.7989]
[1730909205589,0.34832088,2640.9,2640.5,0.7989]
[1730909205806,3.0,2641.2,2640.5,0.7989]
[1730909206108,0.34820701,2641.1,2640.5,0.7989]
[1730909206315,0.34820701,2641.0,2640.5,0.7989]
[1730909206455,0.34820701,2640.9,2640.5,0.7989]
[1730909206656,4.18770433,2641.2,2640.6,0.07275577]
[1730909207009,0.34803892,2641.1,2640.6,0.07275577]
[1730909207188,0.34803892,2641.0,2640.6,0.07275577]
[1730909208064,4.62951225,2641.0,2640.6,0.07275577]
[1730909208258,0.34803892,2640.9,2640.6,0.07275577]
[1730909208465,0.34803892,2640.8,2640.6,0.07275577]
[1730909208660,4.28147333,2640.7,2640.1,12.8881]
[1730909208929,0.34783394,2640.6,2640.1,0.7581]
[1730909209066,5.11467333,2640.7,2640.1,0.7581]
[1730909209419,1.34466733,2640.7,2640.1,0.7581]
[1730909209559,1.34466733,2640.7,2639.8,0.7545]
[1730909209766,3.3476802,2640.6,2639.8,12.8845]
[1730909210127,0.3476802,2640.5,2639.8,12.8845]
[1730909210407,4.28147333,2640.1,2639.4,12.13]
[1730909210704,4.28147333,2640.1,2639.3,0.7545]
[1730909210705,3.80690633,2640.0,2639.5,12.13]
[1730909210865,3.80690633,2640.0,2639.4,12.13]
[1730909211212,0.8068,2639.7,2639.4,12.13]
[1730909211424,3.0,2639.4,2638.6,12.13]
[1730909211600,6.78876,2639.4,2638.6,13.42305]
[1730909211910,3.0,2639.4,2638.6,13.42305]
[1730909212115,3.0,2639.4,2638.7,0.07579845]
[1730909212322,3.78784,2640.1,2638.7,0.07579845]
[1730909212323,3.8197,2640.0,2638.8,0.8261]
[1730909212481,3.8197,2640.0,2638.9,13.42561]
[1730909214314,0.8197,2640.0,2639.0,0.07577542]
[1730909214616,3.8197,2640.0,2638.9,13.42561]
[1730909214999,3.8197,2640.0,2639.0,0.0757754]
[1730909215206,3.8197,2640.0,2638.9,13.42561]
[1730909215403,3.8197,2640.0,2639.0,13.63094639]
[1730909215630,3.8197,2640.0,2639.0,13.555171]
[1730909216287,3.8197,2640.0,2639.1,0.07577539]
[1730909216489,3.8197,2640.0,2639.0,13.555171]
[1730909218632,4.28147333,2639.8,2639.0,12.13]
[1730909218851,3.0,2639.7,2639.0,12.13]
[1730909219365,3.0,2639.4,2639.0,12.13]
[1730909219651,3.7718,2639.4,2638.9,12.13]
[1730909220439,3.0,2639.9,2638.9,13.42561]
[1730909220649,3.0,2640.0,2638.9,13.42561]
[1730909220850,3.0,2640.0,2639.0,12.13]
[1730909221210,5.07217333,2640.4,2639.1,12.98797928]
[1730909221414,5.07217333,2640.4,2639.3,0.7638]
[1730909222309,4.28147333,2639.8,2638.8,0.7638]
[1730909222824,4.28147333,2639.5,2638.8,0.7638]
[1730909223026,3.7823,2639.4,2638.8,0.7638]
[1730909223228,4.28147333,2638.9,2638.3,0.7958]
[1730909224047,3.7574,2638.8,2638.0,0.7751]
[1730909225863,3.7574,2638.8,2637.2,0.01]
[1730909225864,4.28147333,2638.1,2637.7,0.7508]
[1730909226172,4.28147333,2638.1,2636.9,0.7662]
[1730909226518,4.28147333,2638.1,2637.1,0.7662]
[1730909226925,4.28147333,2637.8,2637.2,0.06418843]
[1730909227448,4.28147333,2637.8,2637.1,0.7662]
[1730909228046,3.0,2637.7,2637.1,0.7662]
[1730909229053,4.28147333,2637.5,2637.1,0.7662]
[1730909229313,4.28147333,2637.5,2636.6,0.8165]
[1730909229748,5.08944066,2637.5,2636.6,0.8165]
[1730909230284,4.28147333,2637.2,2636.6,0.8165]
[1730909230625,4.28147333,2636.9,2636.2,0.7548]
[1730909232331,3.828,2637.1,2636.2,0.7548]
[1730909232678,4.28147333,2636.9,2636.2,0.7548]
[1730909232835,0.48314733,2636.8,2636.2,0.7548]
[1730909233349,3.48314733,2636.8,2636.2,0.7548]
[1730909233875,4.28147333,2636.6,2635.9,0.7882]
[1730909234471,3.48314733,2636.8,2635.9,0.7882]
[1730909234693,3.0,2636.8,2635.9,0.7882]
[1730909235009,4.28147333,2637.2,2636.2,0.86406371]
[1730909235144,4.28147333,2637.2,2636.2,0.7882]
[1730909235472,3.27,2637.5,2636.2,0.7982]
[1730909235656,3.27,2637.5,2636.3,0.81977867]
[1730909236370,7.95417333,2637.5,2636.3,0.81977867]
[1730909236976,7.95417333,2637.5,2636.5,0.7585]
[1730909238430,3.6727,2637.5,2636.5,0.7585]
[1730909238944,3.27,2637.5,2636.7,0.7585]
[1730909239343,3.0,2637.4,2636.7,0.7585]
[1730909239772,7.55147333,2637.5,2636.7,0.7585]
[1730909240072,3.27,2637.5,2636.7,0.7585]
[1730909240233,3.27,2637.5,2636.8,12.13]
[1730909240433,7.61147333,2638.1,2637.0,0.8159]
[1730909240629,4.28147333,2637.8,2637.1,12.13]
[1730909240833,4.28147333,2637.5,2637.1,12.19050572]
[1730909241072,4.28147333,2637.2,2637.1,0.06050572]
[1730909241440,4.28147333,2637.2,2636.7,0.8159]
[1730909243283,0.8218,2637.7,2636.7,0.8159]
[1730909244102,7.55147333,2637.8,2636.7,0.8159]
[1730909244238,3.27,2637.8,2636.9,0.8299]
[1730909244443,0.7771,2638.0,2637.1,0.8299]
[1730909244785,0.83885733,2637.9,2637.1,0.8299]
[1730909245119,0.83885733,2637.9,2636.1,3.1407545]
[1730909245120,4.28147333,2637.8,2636.7,0.7863]
[1730909245329,4.28147333,2637.2,2636.7,0.7863]
[1730909245490,3.7914,2637.6,2636.7,0.7863]
[1730909245491,3.0,2637.4,2636.7,0.7863]
[1730909246110,4.28147333,2637.2,2636.7,0.7863]
[1730909246477,3.0,2637.4,2636.8,0.0569068]
[1730909246686,4.18819033,2637.4,2636.8,0.0569068]
[1730909247604,0.8091,2637.6,2636.8,0.0569068]
[1730909248525,3.0,2637.7,2636.8,0.0569068]
[1730909249112,3.0,2637.7,2636.8,12.1869068]
[1730909249491,3.33,2638.1,2637.0,0.7997]
[1730909249833,3.33,2638.1,2637.2,0.7997]
[1730909250049,3.33,2638.1,2637.1,12.1865552]
[1730909250050,3.33,2638.1,2637.3,2.09832552]
[1730909250183,3.33,2638.1,2637.3,2.15471293]
[1730909250846,7.61147333,2638.1,2637.3,2.15471293]
[1730909250993,0.8031,2638.0,2637.3,0.85608741]
[1730909251188,3.8031,2638.0,2637.3,0.7997]
[1730909252030,7.59392,2638.0,2637.3,0.7997]
[1730909252336,7.28147333,2637.8,2637.1,12.13]
[1730909252509,7.28147333,2637.8,2637.0,0.8215]
[1730909252510,3.0,2637.6,2637.0,0.8215]
[1730909252920,0.72814733,2637.7,2637.1,0.05461103]
[1730909253116,0.55,2637.8,2637.1,0.05461103]
[1730909253855,3.0,2637.7,2637.1,0.05461103]
[1730909254424,3.0,2637.9,2637.1,0.05461103]
[1730909255059,4.28147333,2637.5,2637.1,0.05461103]
[1730909255464,3.0,2637.4,2636.8,12.13]
[1730909255625,4.10728033,2637.4,2637.2,0.0545043]
[1730909255825,4.10728033,2637.4,2636.8,12.13]
[1730909256027,4.10728033,2637.4,2637.3,0.05440766]
[1730909256243,4.10728033,2637.4,2636.8,12.13]
[1730909256442,4.10728033,2637.4,2637.3,0.05437635]
[1730909256628,4.10728033,2637.4,2636.8,12.13]
[1730909256855,4.10728033,2637.4,2637.3,0.05440184]
[1730909257061,4.10728033,2637.4,2636.8,12.13]
[1730909257241,4.28147333,2636.9,2636.7,0.7555]
[1730909257437,3.0,2636.8,2636.4,0.7861]
[1730909257889,3.7791,2636.8,2636.0,0.7861]
[1730909259467,7.57163,2636.8,2636.0,0.7861]
[1730909259641,4.28147333,2636.6,2636.0,0.7861]
[1730909259833,5.46678366,2636.6,2636.0,0.7861]
[1730909260655,1.18531033,2636.6,2636.0,0.7861]
[1730909260854,7.5716,2636.8,2636.0,0.7861]
[1730909261800,3.7791,2636.8,2636.0,0.7861]
[1730909262393,7.58404,2637.2,2636.0,0.7861]
[1730909262394,3.7565,2637.1,2636.0,0.7861]
[1730909262922,0.7565,2637.1,2636.2,12.99146592]
[1730909263065,10.38063519,2637.3,2636.2,12.9156]
[1730909263269,1.60833355,2637.2,2636.3,1.30463545]
[1730909264360,4.60833355,2637.2,2636.3,1.30463545]
[1730909264588,4.28147333,2636.9,2636.2,12.9156]
[1730909264787,3.7965,2636.8,2636.2,0.7856]
[1730909265010,3.0,2636.8,2636.2,0.7856]
[1730909265305,3.0,2637.1,2636.2,0.7856]
[1730909265458,0.34673833,2637.0,2636.2,0.7856]
[1730909265660,10.38063519,2637.3,2636.4,0.8134]
[1730909265876,10.38063519,2637.3,2636.5,1.30192586]
[1730909266401,0.34680184,2637.2,2636.4,0.8134]
[1730909266700,10.38063519,2637.3,2636.4,0.8134]
[1730909266903,3.0,2637.2,2636.4,0.8134]
[1730909267899,0.34722879,2637.1,2636.4,0.8134]
[1730909268220,0.34722879,2637.0,2636.4,0.8134]
[1730909268545,0.34722879,2636.9,2636.4,0.8134]
[1730909268844,0.34722879,2636.8,2636.4,0.8134]
[1730909269007,0.34722879,2636.7,2636.5,0.05212114]
[1730909269331,3.7771,2637.0,2636.5,0.05212114]
[1730909269531,0.34792517,2636.9,2636.5,0.05212114]
[1730909270237,1.01288647,2636.9,2636.5,0.05212114]
[1730909270402,0.34792517,2636.8,2636.5,0.05212114]
[1730909270805,3.0,2637.0,2636.5,0.05212114]
[1730909270806,0.34792517,2636.7,2636.5,0.05212114]
[1730909271007,0.34792517,2636.6,2636.5,0.05212114]
[1730909271230,0.34792517,2636.9,2636.5,0.05212114]
[1730909271450,0.34792517,2636.8,2636.5,0.05212114]
[1730909271731,0.34792517,2636.7,2636.1,0.9598545]
[1730909271932,3.0,2636.8,2636.6,0.05218245]
[1730909272136,3.0,2636.8,2636.1,0.9598545]
[1730909272325,0.34819903,2636.7,2636.1,0.9598545]
[1730909272528,0.34819903,2636.6,2636.2,0.05249277]
[1730909272695,0.34819903,2636.5,2636.2,0.05249277]
[1730909272895,0.34819903,2636.4,2636.2,0.05249277]
[1730909273108,0.34819903,2636.3,2636.2,0.05249277]
[1730909273822,0.34819903,2636.5,2636.2,0.05249277]
[1730909274001,0.34819903,2636.4,2636.2,0.05249277]
[1730909274333,0.34819903,2636.3,2636.2,0.05249277]
[1730909274632,0.34819903,2636.7,2636.2,0.05249277]
[1730909274935,0.34819903,2636.6,2636.2,0.05249277]
[1730909275150,0.34819903,2636.5,2636.2,0.05249277]
[1730909275380,0.34819903,2636.4,2636.2,0.05249277]
[1730909275554,1.49051271,2636.4,2636.2,0.05249277]
[1730909275760,1.14224524,2636.4,2636.2,0.05249277]
[1730909276077,0.34822715,2636.3,2636.2,0.05249277]
[1730909281303,3.0,2636.6,2636.2,0.05249277]
[1730909281452,0.34809887,2636.3,2636.2,0.05249277]
[1730909282290,0.34809887,2636.3,2636.2,0.81249277]
[1730909282490,0.34809887,2636.3,2636.2,0.05249277]
[1730909282740,3.27,2637.3,2636.2,12.94249277]
[1730909282998,3.27,2637.3,2636.2,14.25740492]
[1730909282999,1.1370299,2637.2,2636.2,14.25740492]
[1730909283199,0.3480969,2637.1,2636.4,0.76]
[1730909283363,0.3480969,2637.0,2636.4,0.76]
[1730909283556,0.3480969,2636.9,2636.5,0.05244299]
[1730909283756,0.3480969,2636.8,2636.6,0.76]
[1730909283958,0.8277,2637.8,2636.7,12.13]
[1730909284193,0.34818659,2637.7,2636.9,0.76]
[1730909284356,0.34818659,2637.6,2636.9,0.76]
[1730909284558,7.49442296,2637.9,2637.0,0.05136711]
[1730909284870,0.34818194,2637.5,2636.9,0.76]
[1730909285080,0.34818141,2637.8,2637.0,12.20583909]
[1730909285401,0.34818141,2637.8,2637.2,0.76]
[1730909285757,0.34818141,2637.8,2637.1,12.60208785]
[1730909285758,0.34818141,2637.8,2637.4,0.76]
[1730909286107,3.33,2638.4,2637.6,0.8008]
[1730909286413,0.34820939,2638.3,2637.8,0.8008]
[1730909286621,0.34820939,2638.2,2637.9,0.7848]
[1730909286770,3.33,2638.4,2637.9,0.83494612]
[1730909287082,0.34811527,2638.3,2637.9,0.83494612]
[1730909287284,0.34811527,2638.2,2637.9,0.83494612]
[1730909287490,3.33,2638.4,2637.9,0.83494612]
[1730909288015,0.34791098,2638.3,2637.9,0.83494612]
[1730909288316,0.34791098,2638.2,2637.9,0.7848]
[1730909288525,0.34791098,2638.1,2637.9,0.7848]
[1730909288676,3.33,2638.4,2637.9,0.7848]
[1730909288875,0.34818557,2638.3,2637.9,0.7848]
[1730909289075,0.34818557,2638.2,2637.9,0.7848]
[1730909289291,7.12017,2638.4,2637.9,0.7848]
[1730909289292,0.34818557,2638.1,2637.9,0.7848]
[1730909289490,3.33,2638.4,2637.9,0.7848]
[1730909289713,0.34807583,2638.3,2637.9,0.7848]
[1730909289933,3.34807583,2638.2,2637.9,0.7848]
[1730909290076,0.34807583,2638.1,2637.9,0.7848]
[1730909290400,0.34807583,2638.0,2637.9,0.7848]
[1730909291420,4.30273062,2639.3,2637.9,0.7848]
[1730909291587,0.378924,2639.0,2637.9,0.7848]
[1730909291790,0.72690922,2639.0,2638.0,0.85292595]
[1730909291989,0.34798522,2639.0,2638.1,0.8185]
[1730909292477,3.78949,2638.9,2638.1,0.8185]
[1730909293887,3.78976,2638.7,2638.1,0.8185]
[1730909294103,3.0,2638.8,2638.1,0.8185]
[1730909294289,3.78975,2638.7,2638.1,0.8185]
[1730909294494,0.678975,2638.6,2638.1,0.8185]
[1730909294962,3.0,2638.8,2638.1,0.8185]
[1730909295104,3.78981,2638.7,2638.1,0.8185]
[1730909295935,3.79011,2638.5,2637.3,0.7957]
[1730909296247,3.79011,2638.5,2637.5,0.7538]
[1730909296470,3.78984,2638.7,2637.5,0.7538]
[1730909296742,3.78984,2638.7,2637.7,0.7538]
[1730909296943,3.78984,2638.7,2637.8,0.07581296]
[1730909297096,3.0,2639.0,2637.9,0.7538]
[1730909297300,3.0,2638.8,2638.1,0.7786]
[1730909297544,0.8237,2638.7,2638.0,0.04959682]
[1730909297698,3.8237,2638.1,2637.0,0.7786]
[1730909298040,3.0,2637.6,2637.0,0.7786]
[1730909298842,6.79104,2637.8,2637.0,0.7786]
[1730909299145,10.91084519,2638.4,2637.0,0.7786]
[1730909299146,3.7904,2638.3,2637.0,0.7786]
[1730909299373,3.0,2638.4,2637.2,0.7922]
[1730909299499,0.7664,2638.5,2637.2,0.7922]
[1730909299500,3.0,2638.5,2637.3,0.7922]
[1730909299851,3.33,2638.6,2637.5,0.7934]
[1730909299995,3.79004,2638.5,2637.5,0.7934]
[1730909300323,3.79003,2638.5,2637.5,0.7934]
[1730909300901,3.0,2638.5,2637.6,0.07582012]
[1730909301139,3.0,2638.5,2637.7,0.8044]
[1730909301304,3.33,2638.6,2637.7,0.8044]
[1730909302430,3.79019,2638.4,2637.7,0.8044]
[1730909302780,6.79004,2638.5,2637.7,0.8044]
[1730909303473,3.0,2638.5,2637.7,0.8044]
[1730909303968,6.79003,2638.5,2637.7,0.8044]
[1730909304173,3.7902,2638.4,2637.7,0.8044]
[1730909304467,6.79004,2638.5,2637.7,0.8044]
[1730909304682,3.0,2638.5,2637.8,0.07581663]
[1730909304859,4.1210709,2638.5,2637.7,0.8044]
[1730909305055,3.79018,2638.4,2637.7,0.8044]
[1730909305296,7.58045,2638.4,2637.7,12.9344]
[1730909305614,6.79034,2638.3,2637.7,12.9344]
[1730909305824,3.0,2638.3,2637.7,12.9344]
[1730909306794,3.0,2638.5,2637.8,0.8231]
[1730909307008,3.0,2638.5,2637.9,12.13]
[1730909307218,3.33,2638.6,2638.0,0.8231]
[1730909307518,3.33,2638.6,2638.1,0.04282455]
[1730909309089,3.33,2638.6,2638.2,0.7711]
[1730909311342,3.33,2639.5,2639.2,12.17126597]
[1730909314252,3.33,2639.5,2639.2,0.04126597]
[1730909314458,3.33,2639.5,2639.1,0.8206]
[1730909314757,3.33,2639.5,2639.2,0.04088178]
[1730909315115,3.33,2639.5,2639.1,0.8206]
[1730909315656,3.33,2639.5,2639.2,0.04088178]
[1730909315951,3.33,2639.5,2639.1,0.8206]
[1730909316253,3.33,2639.5,2639.2,0.04123006]
[1730909316426,3.33,2639.5,2639.1,0.8206]
[1730909316768,3.78953,2638.9,2638.5,12.8897]
[1730909316921,3.78953,2638.9,2638.5,0.7597]
[1730909317120,6.78927,2639.1,2638.5,0.7597]
[1730909317425,5.09463519,2640.0,2638.5,0.7597]
[1730909317754,3.0,2639.8,2638.5,0.7597]
[1730909318324,3.33,2639.9,2638.5,0.7697]
[1730909318639,7.11803,2639.9,2638.7,0.7771]
[1730909318841,10.90615,2639.9,2638.9,0.7771]
[1730909319064,10.90615,2639.9,2639.0,0.85287683]
[1730909319417,7.11803,2639.9,2639.0,0.85287683]
[1730909319919,6.78817,2639.8,2639.0,0.85287683]
[1730909320137,6.78817,2639.8,2639.0,0.7771]
[1730909320412,6.78817,2639.8,2639.0,0.9846388]
[1730909320822,10.57641,2639.8,2639.0,0.9846388]
[1730909321023,6.78817,2639.8,2639.0,0.9846388]
[1730909321865,10.57641,2639.8,2639.0,0.9846388]
[1730909322168,3.0,2639.8,2639.0,0.7771]
[1730909322365,3.0,2639.5,2639.0,0.7771]
[1730909323144,3.0,2639.5,2639.0,12.9071]
[1730909323569,3.78875,2639.4,2639.1,0.03991757]
[1730909324058,3.0,2639.3,2639.0,0.7771]
[1730909324268,3.0,2639.3,2639.1,0.0400313]
[1730909324444,3.0,2639.3,2639.0,0.7771]
[1730909324644,3.678875,2639.3,2639.1,0.04020935]
[1730909324850,3.0,2639.4,2639.0,0.7771]
[1730909325162,3.0,2639.5,2639.1,0.04022433]
[1730909325472,6.78861,2639.5,2639.1,0.04022433]
[1730909325625,6.78861,2639.5,2639.0,0.7771]
[1730909325825,6.78861,2639.5,2639.1,0.04028872]
[1730909326026,3.0,2639.5,2639.0,0.7771]
[1730909326227,6.78856,2639.6,2639.0,0.7771]
[1730909326489,3.0,2639.6,2639.1,0.04025872]
[1730909326766,3.0,2639.7,2639.0,0.7771]
[1730909326972,3.33,2640.0,2639.0,0.7771]
[1730909327263,3.78646,2641.0,2638.4,3.0857792]
[1730909327264,3.78647,2641.0,2639.4,0.8192]
[1730909327470,3.78647,2641.0,2639.7,0.8192]
[1730909327471,4.165116,2641.0,2639.7,0.8192]
[1730909327680,3.78681,2640.8,2639.8,0.0382583]
[1730909327829,4.165206,2641.0,2639.9,0.8192]
[1730909328025,3.78674,2640.8,2640.0,0.03806595]
[1730909328231,4.30273062,2641.1,2640.2,0.7519]
[1730909328470,4.55564,2641.4,2640.4,0.7519]
[1730909328682,4.55564,2641.4,2640.3,0.11342121]
[1730909328683,3.78594,2641.4,2640.6,0.7519]
[1730909328975,3.78594,2641.4,2640.7,0.03747879]
[1730909329140,5.203139,2641.4,2640.7,0.03747879]
[1730909329482,3.33,2641.5,2640.8,0.7841]
[1730909329630,3.33,2641.5,2640.9,0.03724407]
[1730909330136,3.33,2641.5,2641.0,0.7841]
[1730909330562,3.33,2641.5,2641.1,0.03703636]
[1730909331035,3.0,2641.4,2641.1,0.03703636]
[1730909331245,3.0,2641.4,2641.1,1.33215]
[1730909332237,3.33,2641.5,2641.1,1.33215]
[1730909332431,5.12653062,2642.3,2641.2,0.7693]
[1730909332636,3.7848,2642.2,2641.4,0.7693]
[1730909332884,3.7848,2642.2,2641.5,0.03613603]
[1730909333180,3.7848,2642.2,2641.5,12.16613603]
[1730909333386,3.78453,2642.4,2641.6,12.9175]